bitfinex/quotes_SOLUSD_20250111
["timestamp","ask_amount","ask_price","bid_price","bid_amount"]
[1736615343343,1.5205,186.63,186.57,8.94136279]
[1736615346414,1.5205,186.63,186.54,24.20571839]
[1736615346415,1.5205,186.63,186.58,8.94136279]
[1736615346617,1.5205,186.63,186.56,8.94136279]
[1736615349041,1.5205,186.68,186.62,8.94136279]
[1736615349245,1.5205,186.68,186.63,8.94136279]
[1736615350030,1.5205,186.68,186.64,8.94136279]
[1736615350534,1.5205,186.68,186.6,23.776884]
[1736615350727,1.5205,186.68,186.63,8.94136279]
[1736615350920,1.5205,186.68,186.62,8.94136279]
[1736615353631,1.5205,186.68,186.59,14.20114821]
[1736615353837,1.5205,186.68,186.61,8.94136279]
[1736615354135,1.5205,186.68,186.6,8.94136279]
[1736615354344,1.5205,186.68,186.58,20.0]
[1736615354523,20.0,186.66,186.55,8.30790053]
[1736615354838,6.3618,186.64,186.51,8.30790053]
[1736615355010,6.3618,186.64,186.52,8.94136279]
[1736615356115,6.3618,186.64,186.53,8.94136279]
[1736615356539,6.3618,186.64,186.54,8.94136279]
[1736615361741,6.3618,186.64,186.55,8.94136279]
[1736615361962,6.3618,186.64,186.56,8.94136279]
[1736615363532,6.3618,186.64,186.55,8.94136279]
[1736615364234,6.3618,186.64,186.54,8.94136279]
[1736615365145,6.3618,186.64,186.53,8.94136279]
[1736615367235,6.3618,186.64,186.54,8.94136279]
[1736615373245,6.3618,186.64,186.55,8.94136279]
[1736615373445,6.3618,186.64,186.56,8.94136279]
[1736615373949,6.3618,186.64,186.57,8.94136279]
[1736615374344,6.3618,186.64,186.55,22.27142514]
[1736615374651,6.3618,186.64,186.57,8.94136279]
[1736615375644,6.3618,186.64,186.55,21.467699]
[1736615375645,6.3618,186.64,186.56,8.94136279]
[1736615381245,6.3618,186.64,186.57,8.94136279]
[1736615382866,6.3618,186.64,186.55,21.467699]
[1736615383167,6.3618,186.64,186.57,8.94136279]
[1736615384156,6.3618,186.64,186.58,8.94136279]
[1736615384367,1.6625,186.65,186.61,8.94136279]
[1736615385961,1.6625,186.65,186.6,8.94136279]
[1736615390375,1.6625,186.65,186.58,0.80355642]
[1736615390376,1.6625,186.65,186.61,8.94136279]
[1736615391163,1.6625,186.65,186.62,8.94136279]
[1736615394870,1.6625,186.65,186.61,15.01766279]
[1736615395054,1.6625,186.65,186.61,6.0763]
[1736615395369,1.6625,186.65,186.6,32.71824679]
[1736615396250,1.6625,186.65,186.6,38.79454679]
[1736615396673,1.6625,186.65,186.6,6.0763]
[1736615396851,1.6625,186.65,186.56,13.4004]
[1736615397050,1.6625,186.65,186.58,15.01766279]
[1736615398789,1.6625,186.65,186.59,8.94136279]
[1736615398992,1.6625,186.65,186.61,8.94136279]
[1736615399154,1.6625,186.65,186.62,8.94136279]
[1736615399478,6.0763,186.68,186.63,8.94136279]
[1736615400096,6.0763,186.68,186.62,8.94136279]
[1736615400262,6.0763,186.68,186.61,8.94136279]
[1736615401158,6.0763,186.68,186.6,8.94136279]
[1736615402211,6.0763,186.68,186.61,8.94136279]
[1736615402371,6.0763,186.68,186.62,8.94136279]
[1736615403599,6.0763,186.68,186.61,8.94136279]
[1736615403805,6.0763,186.68,186.59,217.5]
[1736615403985,6.0763,186.68,186.59,226.44136279]
[1736615404179,6.0763,186.68,186.59,217.5]
[1736615404494,1.5113,186.64,186.59,217.5]
[1736615405365,1.5113,186.64,186.56,140.9763]
[1736615405633,1.5113,186.64,186.56,134.9]
[1736615405807,6.621,186.63,186.56,134.9]
[1736615407398,6.621,186.63,186.56,143.84136279]
[1736615410111,1.5113,186.64,186.59,8.94136279]
[1736615410410,1.5113,186.64,186.61,8.94136279]
[1736615410620,6.6637,186.68,186.61,226.44136279]
[1736615410839,6.6637,186.68,186.62,8.94136279]
[1736615411549,1.604,186.69,186.63,8.94136279]
[1736615411850,1.604,186.69,186.64,8.94136279]
[1736615412138,1.604,186.69,186.63,8.94136279]
[1736615412527,1.604,186.69,186.62,226.44136279]
[1736615415835,1.604,186.69,186.62,217.5]
[1736615416139,1.604,186.69,186.62,226.44136279]
[1736615419046,1.604,186.69,186.64,226.44136279]
[1736615419252,1.604,186.69,186.65,226.44136279]
[1736615420125,1.604,186.69,186.65,217.5]
[1736615429235,1.604,186.69,186.6,226.44136279]
[1736615431749,1.604,186.69,186.6,217.5]
[1736615440949,20.0,186.68,186.6,217.5]
[1736615441252,6.2614,186.67,186.6,82.6]
[1736615443832,1.6347,186.66,186.6,82.6]
[1736615444236,1.6347,186.66,186.59,134.9]
[1736615449062,1.6347,186.66,186.6,8.94136279]
[1736615450368,1.5598,186.71,186.63,8.94136279]
[1736615450529,1.5598,186.71,186.64,226.44136279]
[1736615450856,1.5598,186.71,186.65,8.94136279]
[1736615451360,1.5598,186.71,186.65,143.84136279]
[1736615452255,21.62625185,186.73,186.69,8.94136279]
[1736615452436,21.62625185,186.73,186.7,8.94136279]
[1736615452635,21.62625185,186.73,186.7,143.84136279]
[1736615453659,21.62625185,186.73,186.71,8.94136279]
[1736615454548,21.62625185,186.73,186.7,143.84136279]
[1736615455340,21.62625185,186.73,186.7,134.9]
[1736615456040,21.62625185,186.73,186.7,143.84136279]
[1736615457646,21.62625185,186.73,186.7,134.9]
[1736615462270,21.62625185,186.73,186.7,226.44136279]
[1736615462455,21.62625185,186.73,186.71,8.94136279]
[1736615462772,1.5598,186.76,186.7,217.5]
[1736615462968,1.5598,186.76,186.7,226.44136279]
[1736615463653,21.5598,186.76,186.7,217.5]
[1736615464170,20.0,186.74,186.7,82.6]
[1736615465272,20.0,186.75,186.7,82.6]
[1736615469752,4.0162,186.74,186.7,82.6]
[1736615469978,4.0162,186.74,186.62,217.5]
[1736615469979,20.0,186.7,186.62,217.5]
[1736615470155,1.5149,186.69,186.62,217.5]
[1736615481707,1.5149,186.69,186.62,226.44136279]
[1736615483198,1.5149,186.69,186.62,217.5]
[1736615484112,23.776884,186.68,186.62,217.5]
[1736615484429,27.794384,186.68,186.62,217.5]
[1736615484794,27.794384,186.68,186.59,217.5]
[1736615485493,23.776884,186.65,186.59,217.5]
[1736615485693,23.776884,186.65,186.59,82.6]
[1736615485908,1.5149,186.64,186.59,82.6]
[1736615487311,23.776884,186.63,186.59,82.6]
[1736615489196,23.776884,186.63,186.56,217.5]
[1736615493521,23.776884,186.61,186.56,82.6]
[1736615496292,23.776884,186.63,186.56,82.6]
[1736615496495,23.776884,186.59,186.56,82.6]
[1736615496698,1.6481,186.58,186.56,82.6]
[1736615498106,1.6481,186.58,186.51,226.44136279]
[1736615498506,23.776884,186.57,186.51,226.44136279]
[1736615498704,23.776884,186.57,186.51,217.5]
[1736615499829,23.776884,186.57,186.51,82.6]
[1736615501499,1.6481,186.58,186.51,82.6]
[1736615501500,23.776884,186.55,186.51,82.6]
[1736615501916,20.0,186.52,186.46,217.5]
[1736615502119,1.6481,186.51,186.46,217.5]
[1736615508231,23.776884,186.5,186.46,217.5]
[1736615508532,23.776884,186.5,186.4,8.94136279]
[1736615509108,23.776884,186.5,186.39,8.94136279]
[1736615509304,23.776884,186.46,186.39,217.5]
[1736615509509,23.776884,186.46,186.39,226.44136279]
[1736615509724,23.776884,186.46,186.4,8.94136279]
[1736615511337,5.6693,186.51,186.42,8.94136279]
[1736615511718,23.776884,186.5,186.42,8.94136279]
[1736615511914,23.776884,186.5,186.41,8.94136279]
[1736615512527,20.0,186.47,186.4,217.5]
[1736615512728,25.308484,186.46,186.35,82.6]
[1736615512943,25.308484,186.46,186.38,8.94136279]
[1736615514234,25.308484,186.46,186.39,226.44136279]
[1736615514451,25.308484,186.46,186.4,8.94136279]
[1736615515337,25.308484,186.46,186.39,226.44136279]
[1736615515917,25.308484,186.46,186.39,217.5]
[1736615517441,25.308484,186.46,186.39,226.44136279]
[1736615521059,25.308484,186.46,186.39,217.5]
[1736615522153,23.776884,186.44,186.39,217.5]
[1736615525041,23.776884,186.44,186.36,8.94136279]
[1736615527256,23.776884,186.44,186.37,8.94136279]
[1736615530265,23.776884,186.44,186.36,8.94136279]
[1736615532086,23.776884,186.44,186.35,8.94136279]
[1736615533160,20.0,186.42,186.33,0.8046277]
[1736615533485,23.776884,186.45,186.25,1.5756]
[1736615533486,20.0,186.37,186.25,1.5756]
[1736615533775,1.5448,186.36,186.28,8.94136279]
[1736615533980,1.5448,186.36,186.24,0.80488616]
[1736615534169,1.5448,186.33,186.23,82.6]
[1736615534365,23.776884,186.32,186.25,0.50967594]
[1736615534568,23.776884,186.32,186.22,17.24926332]
[1736615534869,20.0,186.3,186.22,8.30790053]
[1736615535079,20.0,186.3,186.2,8.94136279]
[1736615535385,23.776884,186.29,186.21,0.18954452]
[1736615535558,23.776884,186.29,186.22,0.17059006]
[1736615535752,23.776884,186.29,186.19,8.94136279]
[1736615535957,23.776884,186.29,186.2,8.94136279]
[1736615536164,23.776884,186.29,186.15,9.11329995]
[1736615536165,23.776884,186.29,186.15,0.80539942]
[1736615536500,6.2555,186.24,186.13,8.941363]
[1736615536665,6.2555,186.24,186.15,8.94136279]
[1736615536853,6.2555,186.24,186.1,9.11333009]
[1736615537161,20.0,186.21,186.13,8.94136279]
[1736615537365,20.0,186.21,186.14,8.94136279]
[1736615538160,22.11222896,186.24,186.1,0.80542956]
[1736615538361,22.11222896,186.24,186.15,8.94136279]
[1736615538572,23.776884,186.23,186.1,0.80542956]
[1736615538776,23.776884,186.23,186.13,8.94136279]
[1736615539168,20.0,186.2,186.1,0.80542956]
[1736615539477,20.0,186.15,186.03,2.11093329]
[1736615539668,20.0,186.15,186.08,0.53873233]
[1736615539868,20.0,186.15,186.07,8.94136279]
[1736615540272,20.0,186.15,186.09,8.94136279]
[1736615540877,6.2555,186.18,186.1,8.94136279]
[1736615541083,20.6111745,186.18,186.12,8.94136279]
[1736615541404,20.6111745,186.18,186.11,14.04960645]
[1736615541702,20.6111745,186.18,186.13,14.04960645]
[1736615542078,14.3556745,186.18,186.16,14.04960645]
[1736615542272,14.3556745,186.18,186.15,14.04960645]
[1736615542496,14.3556745,186.18,186.14,14.04960645]
[1736615542697,14.3556745,186.18,186.15,14.04960645]
[1736615542903,7.8003,186.24,186.15,14.04960645]
[1736615543282,7.8003,186.24,186.14,14.04960645]
[1736615543882,23.776884,186.23,186.11,34.04960645]
[1736615544076,38.17749031,186.23,186.11,34.04960645]
[1736615544810,20.0,186.2,186.1,14.04960645]
[1736615544984,20.0,186.2,186.11,14.04960645]
[1736615545186,20.0,186.2,186.12,14.04960645]
[1736615545395,20.0,186.2,186.11,14.04960645]
[1736615545601,20.0,186.2,186.1,14.04960645]
[1736615545908,20.0,186.2,186.09,14.04960645]
[1736615545909,23.776884,186.19,186.09,14.04960645]
[1736615546689,23.776884,186.19,186.11,14.04960645]
[1736615546895,20.0,186.2,186.12,14.04960645]
[1736615547290,20.0,186.2,186.13,14.04960645]
[1736615547494,14.40060631,186.23,186.13,14.04960645]
[1736615547695,23.776884,186.22,186.13,14.04960645]
[1736615548206,23.776884,186.22,186.11,14.04960645]
[1736615548414,27.804084,186.23,186.11,14.04960645]
[1736615548590,20.0,186.2,186.11,14.04960645]
[1736615549215,20.0,186.2,186.1,14.04960645]
[1736615549515,20.0,186.2,186.09,34.04960645]
[1736615549714,23.776884,186.19,186.09,34.04960645]
[1736615550100,23.776884,186.17,186.09,34.04960645]
[1736615550301,23.776884,186.17,186.09,20.0]
[1736615551310,30.028184,186.17,186.07,14.04960645]
[1736615551517,30.028184,186.17,186.06,14.04960645]
[1736615551811,30.028184,186.17,186.07,14.04960645]
[1736615552211,30.028184,186.17,186.08,14.04960645]
[1736615553606,30.028184,186.17,186.07,14.04960645]
[1736615553907,30.028184,186.17,186.06,14.04960645]
[1736615554285,34.056784,186.17,185.99,12.04681091]
[1736615554491,34.056784,186.17,186.04,14.04960645]
[1736615554692,34.056784,186.17,185.99,12.04681091]
[1736615554693,25.322284,186.13,186.03,14.04960645]
[1736615555413,25.322284,186.13,185.96,4.62]
[1736615555414,1.5454,186.1,185.94,76.8052]
[1736615555596,23.776884,186.09,185.97,14.04960645]
[1736615556005,23.776884,186.09,185.94,70.5644]
[1736615556212,23.776884,186.09,185.96,14.04960645]
[1736615556518,23.776884,186.05,185.95,14.04960645]
[1736615556724,23.776884,186.05,185.96,14.04960645]
[1736615557226,30.028184,186.03,185.91,34.986501]
[1736615557393,30.028184,186.03,185.92,14.04960645]
[1736615557593,30.028184,186.03,185.93,14.04960645]
[1736615558407,6.2513,186.03,185.94,14.04960645]
[1736615558810,30.028184,186.03,185.93,14.04960645]
[1736615559617,23.776884,186.02,185.9,14.04960645]
[1736615559925,6.2513,186.03,185.91,14.04960645]
[1736615560121,30.028184,186.03,185.91,14.04960645]
[1736615560335,23.776884,186.02,185.9,14.04960645]
[1736615560544,6.2513,186.03,185.91,14.04960645]
[1736615561028,6.2513,186.03,185.92,14.04960645]
[1736615561333,6.2513,186.03,185.96,14.04960645]
[1736615561697,6.2513,186.03,185.97,14.04960645]
[1736615562822,6.2513,186.03,185.98,14.04960645]
[1736615563119,1.5454,186.04,186.0,14.04960645]
[1736615563511,1.5454,186.04,185.98,14.04960645]
[1736615563707,1.5454,186.04,185.97,14.04960645]
[1736615563909,1.5454,186.04,185.95,14.04960645]
[1736615564619,1.5454,186.04,185.94,14.04960645]
[1736615565322,1.5454,186.04,185.89,7.28083295]
[1736615565323,23.776884,186.03,185.89,6.4746]
[1736615565620,20.0,186.0,185.89,20.52420645]
[1736615565820,20.0,186.0,185.89,14.04960645]
[1736615566026,6.5331,185.98,185.88,14.04960645]
[1736615566220,6.5331,185.98,185.89,14.04960645]
[1736615566521,6.5331,185.98,185.88,14.04960645]
[1736615566906,6.5331,185.98,185.9,14.04960645]
[1736615567106,6.5331,186.03,185.93,14.04960645]
[1736615567311,6.5331,186.03,185.95,14.04960645]
[1736615567526,6.5331,186.03,185.96,14.04960645]
[1736615567723,6.5331,186.03,185.94,14.04960645]
[1736615567939,6.5331,186.03,185.95,14.04960645]
[1736615568240,6.5331,186.03,185.96,14.04960645]
[1736615568543,6.5331,186.03,185.95,14.04960645]
[1736615568835,6.5331,186.03,185.94,14.04960645]
[1736615569004,6.5331,186.03,185.93,14.04960645]
[1736615569727,23.776884,186.02,185.92,14.04960645]
[1736615570242,23.776884,186.02,185.93,14.04960645]
[1736615570441,23.776884,186.02,185.92,14.04960645]
[1736615571215,23.776884,186.02,185.91,14.04960645]
[1736615572215,23.776884,186.02,185.92,14.04960645]
[1736615572623,23.776884,186.02,185.91,14.04960645]
[1736615572929,23.776884,186.02,185.93,14.04960645]
[1736615573111,23.776884,186.02,185.94,14.04960645]
[1736615573314,6.5331,186.03,185.94,14.04960645]
[1736615574346,6.5331,186.03,185.95,14.04960645]
[1736615574713,6.5331,186.03,185.94,14.04960645]
[1736615575234,6.5331,186.03,185.96,14.04960645]
[1736615575624,6.5331,186.03,185.94,0.80636747]
[1736615575625,6.5331,186.03,185.95,14.04960645]
[1736615576452,14.34577661,186.05,185.97,14.04960645]
[1736615576626,14.34577661,186.05,185.96,14.04960645]
[1736615576821,14.34577661,186.05,185.95,14.04960645]
[1736615578051,14.34577661,186.05,185.97,14.04960645]
[1736615578240,14.34577661,186.05,185.98,14.04960645]
[1736615579073,6.2498,186.07,185.98,14.04960645]
[1736615579779,6.2498,186.07,185.95,14.25052034]
[1736615579940,6.2498,186.07,185.95,14.04960645]
[1736615580673,6.2498,186.07,185.96,14.04960645]
[1736615580881,6.2498,186.07,185.97,14.04960645]
[1736615582672,6.2498,186.07,186.0,14.04960645]
[1736615582883,6.2498,186.07,185.99,14.04960645]
[1736615583986,6.2498,186.07,185.98,14.04960645]
[1736615584365,6.2498,186.07,185.99,14.04960645]
[1736615585082,6.2498,186.07,186.0,14.04960645]
[1736615587483,4.0299,186.11,185.97,13.443]
[1736615587484,1.6011,186.09,186.03,14.04960645]
[1736615587686,1.6011,186.09,186.05,14.04960645]
[1736615588179,1.6011,186.09,186.03,14.04960645]
[1736615588488,1.6011,186.09,186.02,14.04960645]
[1736615589884,1.6011,186.09,186.01,14.04960645]
[1736615590574,1.6011,186.09,186.05,14.04960645]
[1736615591374,1.6399,186.14,186.08,14.04960645]
[1736615591579,1.6399,186.14,186.06,14.04960645]
[1736615591769,1.6399,186.14,186.05,20.42300645]
[1736615592270,1.6399,186.14,186.05,6.3734]
[1736615593871,1.6399,186.14,186.05,20.42300645]
[1736615594074,1.6399,186.14,186.06,14.04960645]
[1736615595480,1.6399,186.14,186.07,14.85540501]
[1736615595780,1.6399,186.14,186.06,14.04960645]
[1736615598171,1.6399,186.14,186.08,14.04960645]
[1736615598592,1.6399,186.14,186.07,14.04960645]
[1736615599173,1.6399,186.14,186.06,27.48610645]
[1736615599477,1.6399,186.14,186.05,6.3734]
[1736615600293,1.6399,186.14,186.05,20.42300645]
[1736615601581,1.6399,186.14,186.05,6.3734]
[1736615602881,1.6399,186.14,186.03,14.04960645]
[1736615603274,1.6399,186.14,186.04,14.049607]
[1736615603487,1.6399,186.14,186.04,28.09921345]
[1736615603683,1.6399,186.14,186.05,14.04960645]
[1736615604901,1.6399,186.14,186.06,14.04960645]
[1736615605399,1.6399,186.14,186.07,14.04960645]
[1736615605606,1.6399,186.14,186.08,14.04960645]
[1736615606091,1.6399,186.14,186.09,14.04960645]
[1736615606481,14.62774777,186.17,186.12,14.04960645]
[1736615606687,14.62774777,186.17,186.09,14.04960645]
[1736615607788,14.62774777,186.17,186.1,14.04960645]
[1736615610895,14.62774777,186.17,186.09,14.04960645]
[1736615611086,14.62774777,186.17,186.08,14.04960645]
[1736615611512,14.62774777,186.17,186.07,27.48480645]
[1736615612405,14.62774777,186.17,186.08,14.04960645]
[1736615613405,14.62774777,186.17,186.07,34.04960645]
[1736615613581,14.62774777,186.17,186.08,14.04960645]
[1736615614097,14.62774777,186.17,186.09,14.04960645]
[1736615614909,14.62774777,186.17,186.08,14.04960645]
[1736615615414,1.6043,186.16,186.06,8.99541096]
[1736615615579,7.7298,186.16,186.06,8.99541096]
[1736615616705,7.7298,186.16,186.04,13.4377]
[1736615617004,7.7298,186.16,186.06,8.99541096]
[1736615619010,7.7298,186.16,186.05,8.99541096]
[1736615620632,7.7298,186.16,186.06,8.99541096]
[1736615620932,7.7298,186.16,186.05,8.99541096]
[1736615621529,7.7298,186.16,186.06,8.99541096]
[1736615623730,23.776884,186.15,186.06,8.99541096]
[1736615625220,23.776884,186.15,186.04,20.0]
[1736615625413,23.776884,186.15,186.06,8.99541096]
[1736615627615,7.7298,186.16,186.08,8.99541096]
[1736615627821,7.7298,186.16,186.12,8.99541096]
[1736615628028,1.6043,186.16,186.12,8.99541096]
[1736615629530,1.6043,186.16,186.13,8.99541096]
[1736615630117,14.62774777,186.17,186.15,8.99541096]
[1736615630418,7.7492,186.21,186.16,8.99541096]
[1736615631641,7.7492,186.21,186.15,8.99541096]
[1736615631936,7.7492,186.21,186.16,8.99541096]
[1736615631937,1.6237,186.21,186.16,8.99541096]
[1736615632322,6.155,186.26,186.18,8.99541096]
[1736615632735,6.155,186.26,186.17,8.99541096]
[1736615633034,6.155,186.26,186.16,8.99541096]
[1736615633337,6.155,186.26,186.15,8.99541096]
[1736615634128,23.776884,186.25,186.13,13.4308]
[1736615634330,23.776884,186.25,186.14,8.99541096]
[1736615636339,23.776884,186.25,186.13,20.0]
[1736615636530,23.776884,186.25,186.13,28.99541096]
[1736615636935,23.776884,186.23,186.13,8.99541096]
[1736615637131,23.776884,186.23,186.12,8.99541096]
[1736615638536,23.776884,186.23,186.13,8.99541096]
[1736615641047,23.776884,186.23,186.12,8.99541096]
[1736615641543,1.6237,186.24,186.14,8.99541096]
[1736615641848,1.6237,186.24,186.1,14.23888229]
[1736615641849,1.6237,186.24,186.16,8.99541096]
[1736615644028,1.6237,186.24,186.12,49.41334384]
[1736615644029,1.6237,186.24,186.15,8.99541096]
[1736615645239,1.6237,186.24,186.14,8.99541096]
[1736615646858,23.776884,186.23,186.12,13.4317]
[1736615647154,23.776884,186.23,186.12,8.99541096]
[1736615647755,23.776884,186.21,186.09,13.4341]
[1736615647939,23.776884,186.21,186.09,8.99541096]
[1736615648137,1.6237,186.2,186.09,8.99541096]
[1736615649752,23.776884,186.19,186.08,8.99541096]
[1736615649952,6.5478,186.16,186.05,8.41083596]
[1736615650132,6.5478,186.16,186.06,8.99541096]
[1736615650462,6.5478,186.16,186.08,8.99541096]
[1736615652956,6.5478,186.16,186.09,8.99541096]
[1736615653248,6.5478,186.16,186.07,8.99541096]
[1736615655944,6.5478,186.16,186.05,14.24304798]
[1736615656262,6.5478,186.16,186.06,8.99541096]
[1736615656449,6.5478,186.16,186.07,8.99541096]
[1736615660486,6.5478,186.16,186.08,8.99541096]
[1736615660768,6.5478,186.16,186.11,8.99541096]
[1736615661164,6.5478,186.16,186.1,8.99541096]
[1736615662066,6.5478,186.16,186.11,8.99541096]
[1736615662676,6.5478,186.16,186.05,13.4372]
[1736615662873,6.5478,186.16,186.07,8.99541096]
[1736615663475,6.5478,186.16,186.08,8.99541096]
[1736615664688,6.5478,186.16,186.06,0.80575613]
[1736615664866,6.5478,186.16,186.08,8.99541096]
[1736615665679,6.5478,186.16,186.06,0.80575613]
[1736615665680,6.5478,186.16,186.05,13.4372]
[1736615665864,6.5478,186.16,186.06,8.99541096]
[1736615666477,6.5478,186.16,186.07,8.99541096]
[1736615667655,6.5478,186.16,186.06,8.99541096]
[1736615669282,1.6531,186.14,186.05,28.99541096]
[1736615670486,1.6531,186.14,186.05,20.0]
[1736615670665,1.6531,186.14,186.01,14.241921]
[1736615670666,23.776884,186.13,186.01,14.241921]
[1736615670988,7.6773,186.12,186.0,17.40624692]
[1736615671196,23.776884,186.11,186.0,8.99541096]
[1736615671883,23.776884,186.11,186.01,8.99541096]
[1736615675182,7.6773,186.12,186.02,8.99541096]
[1736615675555,7.6773,186.12,186.04,8.99541096]
[1736615675762,7.6773,186.12,186.06,8.99541096]
[1736615675967,7.6773,186.12,186.07,8.99541096]
[1736615676175,7.6773,186.12,186.06,8.99541096]
[1736615676587,7.6773,186.12,186.02,0.80584533]
[1736615676770,7.6773,186.12,186.07,8.99541096]
[1736615681289,7.6773,186.12,186.06,8.99541096]
[1736615681592,7.6773,186.12,186.07,8.99541096]
[1736615682096,7.6773,186.12,186.06,8.99541096]
[1736615682884,7.6773,186.12,186.04,22.43301096]
[1736615687301,7.6773,186.12,186.04,8.99541096]
[1736615688908,7.6773,186.12,186.05,8.99541096]
[1736615689196,7.6773,186.12,186.07,8.99541096]
[1736615690205,8.1867,186.17,186.11,8.99541096]
[1736615690492,8.1867,186.17,186.13,8.99541096]
[1736615691500,1.5965,186.17,186.14,8.99541096]
[1736615692221,8.1867,186.21,186.15,8.99541096]
[1736615692514,8.1867,186.21,186.14,8.99541096]
[1736615692890,8.1867,186.21,186.15,8.99541096]
[1736615694318,8.1867,186.21,186.14,8.99541096]
[1736615694520,8.1867,186.21,186.11,13.4329]
[1736615694813,8.1867,186.21,186.12,8.99541096]
[1736615695413,8.1867,186.21,186.13,8.99541096]
[1736615695808,8.1867,186.21,186.11,8.99541096]
[1736615697208,8.1867,186.21,186.12,8.99541096]
[1736615698496,8.1867,186.21,186.13,8.99541096]
[1736615698900,8.1867,186.21,186.15,8.99541096]
[1736615699108,8.1867,186.21,186.18,8.99541096]
[1736615699109,1.5965,186.21,186.18,8.99541096]
[1736615699349,6.5902,186.26,186.2,8.99541096]
[1736615699350,1.5965,186.25,186.2,8.99541096]
[1736615699651,1.5965,186.25,186.21,9.80065943]
[1736615699994,1.5965,186.25,186.2,8.99541096]
[1736615700397,1.5965,186.25,186.18,8.99541096]
[1736615700602,1.5965,186.25,186.17,28.99541096]
[1736615700815,1.5965,186.25,186.16,8.99541096]
[1736615702721,1.5965,186.25,186.13,0.80543291]
[1736615702929,23.776884,186.24,186.12,91.59541096]
[1736615703098,1.5965,186.25,186.14,8.99541096]
[1736615703426,1.5965,186.25,186.14,14.04459]
[1736615703997,1.5965,186.25,186.15,14.04459]
[1736615705624,1.5965,186.25,186.14,14.04459]
[1736615705803,1.5965,186.25,186.13,14.04459]
[1736615706201,1.5965,186.25,186.12,96.64459]
[1736615706202,23.776884,186.24,186.12,96.64459]
[1736615707529,1.5965,186.23,186.12,96.64459]
[1736615707709,1.5965,186.23,186.12,14.04459]
[1736615708231,1.5965,186.23,186.11,14.04459]
[1736615708731,1.5965,186.23,186.12,14.04459]
[1736615710626,6.1746,186.22,186.1,14.85013142]
[1736615710835,6.1746,186.22,186.1,28.89472142]
[1736615711339,1.5919,186.21,186.09,14.04459]
[1736615711640,1.5919,186.21,186.09,20.21919]
[1736615715622,1.5919,186.21,186.1,14.04459]
[1736615716047,23.776884,186.18,186.09,6.1746]
[1736615716224,1.5919,186.16,186.06,82.6]
[1736615716434,1.5919,186.16,186.04,22.47317002]
[1736615716742,1.5919,186.16,186.04,14.04459]
[1736615717820,5.6207,186.16,186.04,14.04459]
[1736615718545,1.5919,186.15,186.03,14.04459]
[1736615719543,6.1746,186.12,186.02,20.21919]
[1736615719738,6.1746,186.12,186.02,6.1746]
[1736615720036,6.1746,186.12,186.01,14.04459]
[1736615720738,1.5919,186.1,185.99,14.04459]
[1736615721742,1.5919,186.1,186.01,14.04459]
[1736615721924,1.5919,186.1,186.03,14.04459]
[1736615723153,1.5919,186.1,186.07,14.04459]
[1736615723451,1.5919,186.1,186.09,14.04459]
[1736615723622,4.0303,186.09,185.97,10.2042]
[1736615723819,1.5919,186.1,186.01,14.04459]
[1736615725041,1.5919,186.1,186.02,14.04459]
[1736615725859,1.5919,186.1,186.01,14.04459]
[1736615726034,1.5919,186.1,186.0,14.04459]
[1736615727149,23.776884,186.09,185.99,14.04459]
[1736615727335,23.776884,186.09,185.99,9.00327928]
[1736615728155,23.776884,186.09,185.98,9.00327928]
[1736615728338,23.776884,186.07,185.97,10.2042]
[1736615728527,23.776884,186.07,185.97,19.20747928]
[1736615729127,23.776884,186.07,185.97,9.00327928]
[1736615729330,1.5919,186.06,185.95,9.00327928]
[1736615729748,1.5919,186.06,185.95,30.53974728]
[1736615730351,23.776884,186.05,185.95,30.53974728]
[1736615730557,23.776884,186.05,185.94,9.00327928]
[1736615730951,23.776884,186.05,185.94,21.537858]
[1736615731134,4.0313,186.04,185.94,30.54113728]
[1736615731330,8.1319,186.02,185.9,0.80641577]
[1736615731531,8.1319,186.02,185.93,9.00327928]
[1736615732031,8.1319,186.02,185.92,30.54292228]